fUSD/lending_fUSD_20241030
["ID","MTS","AMOUNT","RATE_DAILY","PERIOD"]
[341034554,1730293838304,-1518.72,0.00032876,5]
[341034555,1730293838314,-1055.37,0.00032876,5]
[341034556,1730293838323,-500.0,0.00032876,5]
[341034557,1730293838333,-1197.07,0.00032876,5]
[341034558,1730293838342,-500.0,0.00032876,5]
[341034559,1730293838351,-276.197436,0.00032876,7]
[341034560,1730293838361,-500.0,0.00032876,5]
[341034561,1730293838370,-500.0,0.00032876,5]
[341034562,1730293838379,-500.0,0.00032876,5]
[341034563,1730293838389,-500.0,0.00032876,5]
[341034564,1730293838398,-500.0,0.00032876,5]
[341034565,1730293838408,-500.0,0.00032876,5]
[341034566,1730293838418,-500.0,0.00032876,5]
[341034567,1730293838427,-500.0,0.00032876,5]
[341034568,1730293838437,-500.0,0.00032876,5]
[341034569,1730293838446,-815.42,0.00032876,5]
[341034570,1730293838455,-706.25,0.00032876,5]
[341034571,1730293838466,-500.0,0.00032876,5]
[341034572,1730293838475,-500.0,0.00032876,5]
[341034573,1730293838486,-1109.06,0.00032876,5]
[341034574,1730293838495,-500.0,0.00032876,5]
[341034575,1730293838505,-500.0,0.00032876,5]
[341034576,1730293838514,-500.0,0.00032876,5]
[341034577,1730293838524,-1382.66,0.00032876,5]
[341034578,1730293838533,-1139.9,0.00032876,5]
[341034579,1730293838542,-500.0,0.00032876,5]
[341034580,1730293838552,-500.0,0.00032876,5]
[341034581,1730293838561,-500.0,0.00032876,5]
[341034582,1730293838570,-500.0,0.00032876,5]
[341034583,1730293838580,-1712.52,0.00032876,5]
[341034584,1730293838592,-500.0,0.00032876,5]
[341034585,1730293838602,-500.0,0.00032876,5]
[341034586,1730293838611,-151.0,0.00032876,7]
[341034587,1730293838620,-151.0,0.00032876,7]
[341034588,1730293838629,-1512.04,0.00032876,5]
[341034589,1730293838639,-500.0,0.00032876,5]
[341034590,1730293838647,-151.0,0.00032876,7]
[341034591,1730293838656,-500.0,0.00032876,5]
[341034592,1730293838665,-500.0,0.00032876,5]
[341034593,1730293838675,-500.0,0.00032876,5]
[341034594,1730293838685,-500.0,0.00032876,5]
[341034595,1730293838694,-500.0,0.00032876,5]
[341034596,1730293838703,-593.21,0.00032876,5]
[341034597,1730293838712,-840.63,0.00032876,5]
[341034598,1730293838720,-500.0,0.00032876,5]
[341034599,1730293838730,-500.0,0.00032876,5]
[341034600,1730293838738,-500.0,0.00032876,5]
[341034601,1730293838747,-3254.73,0.00032876,5]
[341034602,1730293838756,-500.0,0.00032876,5]
[341034603,1730293838766,-500.0,0.00032876,5]
[341034604,1730293838775,-500.0,0.00032876,5]
[341034605,1730293838784,-2000.0,0.00032876,5]
[341034606,1730293838794,-543.03,0.00032876,5]
[341034607,1730293838803,-645.43879143,0.00032876,5]
[341034608,1730293838812,-703.8,0.00032876,5]
[341034609,1730293838822,-856.97,0.00032876,5]
[341034610,1730293838831,-500.0,0.00032876,5]
[341034611,1730293838840,-500.0,0.00032876,5]
[341034612,1730293838851,-633.58,0.00032876,5]
[341034613,1730293838860,-500.0,0.00032876,5]
[341034614,1730293838870,-500.0,0.00032876,5]
[341034615,1730293838879,-500.0,0.00032876,5]
[341034616,1730293838888,-500.0,0.00032876,5]
[341034617,1730293838898,-500.0,0.00032876,5]
[341034618,1730293838907,-500.0,0.00032876,5]
[341034619,1730293838917,-500.0,0.00032876,5]
[341034620,1730293838926,-515.92,0.00032876,5]
[341034621,1730293838935,-500.0,0.00032876,5]
[341034622,1730293838944,-1194.99,0.00032876,5]
[341034623,1730293838953,-2004.13,0.00032876,5]
[341034624,1730293838962,-5827.32,0.00032876,5]
[341034625,1730293838972,-500.0,0.00032876,5]
[341034626,1730293838983,-500.0,0.00032876,5]
[341034627,1730293838991,-500.0,0.00032876,5]
[341034628,1730293839000,-500.0,0.00032876,5]
[341034629,1730293839010,-500.0,0.00032876,7]
[341034630,1730293839018,-500.0,0.00032876,5]
[341034631,1730293839028,-500.0,0.00032876,5]
[341034632,1730293839037,-500.0,0.00032876,5]
[341034633,1730293839046,-500.0,0.00032876,5]
[341034634,1730293839055,-500.0,0.00032876,5]
[341034635,1730293839064,-500.0,0.00032876,5]
[341034636,1730293839074,-565.54,0.00032876,5]
[341034637,1730293839083,-1200.41,0.00032876,5]
[341034638,1730293839092,-500.0,0.00032876,5]
[341034639,1730293839102,-500.0,0.00032876,5]
[341034640,1730293839111,-500.0,0.00032876,5]
[341034641,1730293839120,-826.29,0.00032876,5]
[341034642,1730293839129,-998.63,0.00032876,5]
[341034643,1730293839139,-500.0,0.00032876,5]
[341034644,1730293839148,-1183.42,0.00032876,5]
[341034645,1730293839157,-500.0,0.00032876,5]
[341034646,1730293839166,-500.0,0.00032876,5]
[341034647,1730293839175,-500.0,0.00032876,5]
[341034648,1730293839185,-151.0,0.00032876,7]
[341034649,1730293839194,-151.0,0.00032876,7]
[341034650,1730293839203,-151.0,0.00032876,7]
[341034651,1730293839212,-940.64,0.00032876,30]
[341034652,1730293839221,-151.0,0.00032876,7]
[341034653,1730293839231,-151.0,0.00032876,7]
[341034654,1730293839239,-624.71,0.00032876,5]
[341034655,1730293839248,-500.0,0.00032876,5]
[341034656,1730293839257,-500.0,0.00032876,5]
[341034657,1730293839267,-1073.79,0.00032876,5]
[341034658,1730293839276,-500.0,0.00032876,5]
[341034659,1730293839285,-536.08,0.00032876,5]
[341034660,1730293839295,-500.0,0.00032876,5]
[341034661,1730293839303,-500.0,0.00032876,5]
[341034662,1730293839313,-500.0,0.00032876,5]
[341034663,1730293839322,-500.0,0.00032876,5]
[341034664,1730293839332,-594.22,0.00032876,5]
[341034665,1730293839341,-763.71,0.00032876,5]
[341034666,1730293839350,-864.88,0.00032876,5]
[341034667,1730293839359,-163.89190988,0.00032877,2]
[341034668,1730293839368,-621.0,0.00032883,2]
[341034669,1730293839377,-204.48373048,0.000329,4]
[341034670,1730293839386,-1000.0,0.000329,12]
[341034671,1730293839395,-178.30494821,0.000329,2]
[341034672,1730293839404,-503.38352454,0.00032973,5]
[341034673,1730293839414,-500.0,0.00032973,5]
[341034674,1730293839423,-188.75851523,0.0003299,2]
[341034675,1730293839432,-518.56969124,0.00032999,2]
[341034676,1730293839442,-500.0,0.00032999,5]
[341034677,1730293839451,-564.64,0.00032999,5]
[341034678,1730293839459,-527848.58030894,0.00033,2]
[341034679,1730293839569,-500.0,0.00032876,5]
[341034680,1730293839580,-522603.74244936,0.00033,2]
[341034681,1730293839595,-1001.65909385,0.00033,2]
[341034682,1730293840000,-214.04679079,0.00032875,2]
[341034683,1730293840011,-3028.3060039,0.00033,2]
[341034684,1730293840023,-351.55000015,0.00033,2]
[341034690,1730293842779,-476.86027063,0.00032876,5]
[341034691,1730293842789,-500.0,0.00032876,5]
[341034692,1730293842798,-500.0,0.00032876,5]
[341034693,1730293842808,-500.0,0.00032876,5]
[341034694,1730293842817,-289.926962,0.00032876,7]
[341034695,1730293842827,-116289.53820898,0.00033,2]
[341034696,1730293842925,-500.0,0.00032876,5]
[341034697,1730293842935,-393.60672373,0.00033,2]
[341034746,1730293845748,-289.926962,0.00032876,7]
[341034748,1730293845758,-289.926962,0.00032876,7]
[341034750,1730293845768,-500.0,0.00032876,5]
[341034751,1730293845777,-679.96,0.00032876,5]
[341034753,1730293845787,-289.926962,0.00032876,7]
[341034755,1730293845797,-500.0,0.00032876,5]
[341034758,1730293845808,-289.926962,0.00032876,7]
[341034760,1730293845818,-2030.9757477,0.00032876,5]
[341034765,1730293845861,-2425.55411978,0.00032876,5]
[341034787,1730293846076,-2322.52013252,0.00032876,5]
[341034789,1730293846086,-289.926962,0.00032876,7]
[341034791,1730293846095,-28483.01721109,0.00033,2]
[341034793,1730293846105,-210.70880132,0.00033,2]
[341034795,1730293846115,-289.926962,0.00033,7]
[341034797,1730293846124,-188.75851523,0.0003314,2]
[341034799,1730293846134,-500.0,0.0003315,5]
[341034801,1730293846143,-431.82117389,0.0003315,5]
[341034803,1730293846152,-500.0,0.0003315,5]
[341034805,1730293846162,-500.0,0.0003315,5]
[341034807,1730293846171,-500.0,0.0003315,7]
[341034809,1730293846180,-500.0,0.0003315,5]
[341034811,1730293846189,-500.0,0.0003315,5]
[341034813,1730293846198,-449.03011285,0.0003315,5]
[341034815,1730293846207,-500.0,0.0003315,5]
[341034817,1730293846215,-868.3,0.0003315,5]
[341034819,1730293846224,-500.0,0.0003315,5]
[341034821,1730293846233,-500.0,0.0003315,5]
[341034823,1730293846243,-584.52,0.0003315,5]
[341034825,1730293846253,-500.0,0.0003315,5]
[341034826,1730293846262,-500.0,0.0003315,5]
[341034828,1730293846271,-618.29,0.0003315,5]
[341034830,1730293846280,-500.0,0.0003315,5]
[341034832,1730293846289,-500.0,0.0003315,5]
[341034834,1730293846299,-601.65277585,0.0003315,5]
[341034836,1730293846307,-500.0,0.0003315,5]
[341034838,1730293846316,-500.0,0.0003315,5]
[341034840,1730293846326,-500.0,0.0003315,5]
[341034842,1730293846334,-500.0,0.0003315,5]
[341034844,1730293846343,-500.0,0.0003315,5]
[341034846,1730293846352,-660.69,0.0003315,5]
[341034847,1730293846362,-500.0,0.0003315,5]
[341034850,1730293846372,-500.0,0.0003315,5]
[341034851,1730293846381,-500.0,0.0003315,5]
[341034854,1730293846391,-500.0,0.0003315,5]
[341034856,1730293846401,-500.0,0.0003315,5]
[341034858,1730293846411,-500.0,0.0003315,5]
[341034860,1730293846420,-500.0,0.0003315,5]
[341034861,1730293846429,-931.21,0.0003315,2]
[341034862,1730293846438,-500.0,0.0003315,5]
[341034863,1730293846447,-500.0,0.0003315,5]
[341034869,1730293846586,-500.0,0.0003315,5]
[341034871,1730293846601,-500.0,0.0003315,5]
[341034873,1730293846611,-500.0,0.0003315,5]
[341034875,1730293846620,-500.0,0.0003315,5]
[341034877,1730293846629,-500.0,0.0003315,5]
[341034879,1730293846638,-500.0,0.0003315,5]
[341034881,1730293846647,-1070.35,0.0003315,5]
[341034883,1730293846657,-521.64302512,0.0003315,5]
[341034885,1730293846666,-530.66800548,0.0003315,5]
[341034887,1730293846675,-500.0,0.0003315,5]
[341034889,1730293846685,-500.0,0.0003315,5]
[341034891,1730293846694,-523.68671235,0.0003315,5]
[341034893,1730293846703,-500.0,0.0003315,5]
[341034895,1730293846713,-500.0,0.0003315,5]
[341034897,1730293846722,-500.0,0.0003315,5]
[341034899,1730293846732,-511.06,0.0003315,5]
[341034900,1730293846742,-500.0,0.0003315,5]
[341034902,1730293846752,-500.0,0.0003315,5]
[341034905,1730293846765,-500.0,0.0003315,5]
[341034907,1730293846774,-625.29,0.0003315,5]
[341034909,1730293846784,-500.0,0.0003315,5]
[341034911,1730293846793,-500.0,0.0003315,5]
[341034913,1730293846802,-500.0,0.0003315,5]
[341034915,1730293846811,-500.0,0.0003315,5]
[341034917,1730293846820,-516.43,0.0003315,5]
[341034919,1730293846830,-924.4,0.0003315,5]
[341034921,1730293846839,-591.78,0.0003315,5]
[341034923,1730293846850,-500.0,0.0003315,5]
[341034925,1730293846860,-500.0,0.0003315,5]
[341034927,1730293846869,-500.0,0.0003315,5]
[341034929,1730293846878,-500.0,0.0003315,5]
[341034931,1730293846888,-500.0,0.0003315,5]
[341034933,1730293846897,-836.66,0.0003315,5]
[341034935,1730293846907,-499.2997,0.0003315,5]
[341034937,1730293846916,-500.0,0.0003315,5]
[341034939,1730293846926,-500.0,0.0003315,5]
[341034941,1730293846935,-500.0,0.0003315,5]
[341034943,1730293846943,-894.59,0.0003315,5]
[341034945,1730293846953,-175.41759817,0.0003315,5]
[341034947,1730293846962,-248.35231212,0.0003315,5]
[341035195,1730293932001,155.95,0.00015342,2]
[341035196,1730293976993,458.02688055,0.00033199,120]
[341035198,1730294558433,158.4,0.00015342,2]
[341035217,1730295031818,-622.89018123,0.00025,2]
[341035219,1730295031827,-153.33213528,0.00026,2]
[341035221,1730295031840,-295.44814184,0.00026,2]
[341035223,1730295031888,-1251.50392303,0.00026,2]
[341035224,1730295031897,-541.24960225,0.000283,30]
[341035225,1730295031906,-595.8,0.00028675,2]
[341035226,1730295031915,-172.32534949,0.000296,2]
[341035227,1730295031925,-899.0,0.000298,3]
[341035228,1730295031934,-999.99,0.000298,2]
[341035229,1730295031944,-1289.54014473,0.0003,2]
[341035230,1730295031953,-488.87,0.00030604,2]
[341035231,1730295031963,-150.0,0.00030683,7]
[341035232,1730295031972,-500.0,0.00030816,2]
[341035233,1730295031982,-23900.0,0.00030853,2]
[341035234,1730295031991,-2218.0,0.00030905,2]
[341035235,1730295032001,-595.8,0.00030939,2]
[341035236,1730295032011,-172.65,0.00031091,2]
[341035237,1730295032021,-159.09,0.00031249,30]
[341035238,1730295032030,-3286.3,0.00031249,20]
[341035239,1730295032040,-604.9,0.00031249,2]
[341035240,1730295032049,-2622.06,0.00031303,2]
[341035241,1730295032059,-204.11,0.00031303,2]
[341035242,1730295032069,-6486.64,0.00031348,2]
[341035243,1730295032079,-250.0,0.00031428,2]
[341035244,1730295032088,-204.88,0.00031428,2]
[341035245,1730295032097,-799.67,0.00031549,2]
[341035246,1730295032110,-712.0,0.00031604,2]
[341035247,1730295032119,-98272.48,0.00031634,2]
[341035248,1730295032128,-156.9,0.00032015,2]
[341035249,1730295032138,-156.9,0.00032047,2]
[341035250,1730295032148,-156.9,0.00032079,2]
[341035251,1730295032157,-156.9,0.00032111,2]
[341035252,1730295032166,-441.2071,0.00032122,2]
[341035253,1730295032176,-156.9,0.00032143,2]
[341035254,1730295032189,-156.9,0.00032175,2]
[341035255,1730295032198,-426.62,0.00032178,2]
[341035256,1730295032207,-170.84,0.00032205,2]
[341035257,1730295032218,-2407.9828,0.00032554,2]
[341035258,1730295032228,-191.86,0.00032749,2]
[341035259,1730295032237,-563.7367,0.00032776,2]
[341035260,1730295032247,-4707.8385,0.00032776,2]
[341035262,1730295032257,-75070.16031719,0.00032776,2]
[341035263,1730295032270,-2833.80267241,0.00032776,2]
[341035264,1730295032282,-1399.84048302,0.00032776,2]
[341035265,1730295032294,-5388.8,0.00032776,2]
[341035266,1730295032316,-1356.99024644,0.00032776,2]
[341035267,1730295032328,-262.48322908,0.00032776,2]
[341035272,1730295038295,-13687.92305186,0.00032776,2]
[341035273,1730295038304,-500.0,0.00032873,2]
[341035274,1730295038314,-500.0,0.00032876,7]
[341035275,1730295038324,-267.95101018,0.00032876,5]
[341035276,1730295038333,-500.0,0.00032876,5]
[341035277,1730295038343,-500.0,0.00032876,5]
[341035278,1730295038354,-300.0,0.00032876,5]
[341035279,1730295038365,-500.0,0.00032876,5]
[341035280,1730295038374,-500.0,0.00032876,5]
[341035281,1730295038384,-500.0,0.00032876,5]
[341035282,1730295038394,-150.0,0.00032876,5]
[341035283,1730295038404,-500.0,0.00032876,5]
[341035284,1730295038415,-500.0,0.00032876,5]
[341035286,1730295038424,-500.0,0.00032876,5]
[341035288,1730295038433,-500.0,0.00032876,5]
[341035290,1730295038442,-500.0,0.00032876,5]
[341035292,1730295038451,-500.0,0.00032876,5]
[341035294,1730295038460,-500.0,0.00032876,5]
[341035296,1730295038469,-521.14282208,0.00032876,5]
[341035298,1730295038479,-500.0,0.00032876,5]
[341035300,1730295038488,-500.0,0.00032876,5]
[341035302,1730295038498,-500.0,0.00032876,5]
[341035303,1730295038506,-500.0,0.00032876,5]
[341035305,1730295038515,-500.0,0.00032876,5]
[341035307,1730295038525,-500.0,0.00032876,5]
[341035309,1730295038533,-500.0,0.00032876,5]
[341035311,1730295038543,-155.9940583,0.00032876,5]
[341035313,1730295038552,-1211.42,0.00032876,5]
[341035315,1730295038561,-500.0,0.00032876,5]
[341035317,1730295038570,-500.0,0.00032876,5]
[341035319,1730295038580,-500.0,0.00032876,5]
[341035321,1730295038589,-500.0,0.00032876,5]
[341035323,1730295038598,-500.0,0.00032876,5]
[341035325,1730295038609,-443.25310143,0.00032876,5]
[341035327,1730295038619,-1436.86,0.00032876,5]
[341035329,1730295038628,-500.0,0.00032876,5]
[341035331,1730295038637,-697.29,0.00032876,5]
[341035333,1730295038646,-1306.05,0.00032876,5]
[341035335,1730295038655,-1056.22,0.00032876,5]
[341035337,1730295038664,-500.0,0.00032876,5]
[341035339,1730295038673,-718.86,0.00032876,5]
[341035341,1730295038682,-1052.97,0.00032876,5]
[341035343,1730295038691,-500.0,0.00032876,5]
[341035345,1730295038701,-500.0,0.00032876,5]
[341035347,1730295038710,-500.0,0.00032876,5]
[341035349,1730295038719,-500.0,0.00032876,5]
[341035351,1730295038728,-1788.64,0.00032876,5]
[341035353,1730295038737,-500.0,0.00032876,5]
[341035355,1730295038746,-500.0,0.00032876,5]
[341035357,1730295038755,-796.56,0.00032876,5]
[341035359,1730295038765,-500.0,0.00032876,5]
[341035361,1730295038774,-500.0,0.00032876,5]
[341035363,1730295038783,-857.93,0.00032876,5]
[341035365,1730295038793,-500.0,0.00032876,5]
[341035367,1730295038801,-500.0,0.00032876,5]
[341035368,1730295038810,-500.0,0.00032876,5]
[341035371,1730295038822,-2000.0,0.00032876,5]
[341035373,1730295038830,-196.84218798,0.00032876,5]
[341035393,1730295040356,-447.50781202,0.00032876,5]
[341035394,1730295040367,-271.96880098,0.00032876,5]
[341035395,1730295040379,-228.03119902,0.00032876,5]
[341035396,1730295040388,-41.83380098,0.00032876,5]
[341035408,1730295042884,-335.32397589,0.000259,2]
[341035409,1730295042894,-458.16619902,0.00032876,5]
[341035410,1730295042903,-1238.62,0.00032876,5]
[341035411,1730295042913,-2636.54,0.00032876,5]
[341035412,1730295042922,-2996.12,0.00032876,5]
[341035413,1730295042931,-500.0,0.00032876,5]
[341035414,1730295042941,-500.0,0.00032876,5]
[341035415,1730295042950,-500.0,0.00032876,5]
[341035416,1730295042961,-500.0,0.00032876,5]
[341035417,1730295042970,-500.0,0.00032876,5]
[341035418,1730295042979,-500.0,0.00032876,5]
[341035419,1730295042988,-6496.59,0.00032876,5]
[341035420,1730295042998,-902.29,0.00032876,5]
[341035421,1730295043007,-604.86,0.00032876,5]
[341035422,1730295043017,-1676.33,0.00032876,5]
[341035423,1730295043026,-1365.17,0.00032876,5]
[341035424,1730295043036,-500.0,0.00032876,5]
[341035425,1730295043045,-2054.11,0.00032876,5]
[341035426,1730295043054,-1593.61,0.00032876,5]
[341035427,1730295043063,-2319.36,0.00032876,5]
[341035428,1730295043072,-1289.51,0.00032876,5]
[341035429,1730295043082,-1036.85,0.00032876,5]
[341035430,1730295043091,-500.0,0.00032876,5]
[341035431,1730295043102,-500.0,0.00032876,5]
[341035432,1730295043115,-151.0,0.00032876,7]
[341035433,1730295043124,-899.58,0.00032876,5]
[341035434,1730295043133,-500.0,0.00032876,5]
[341035435,1730295043142,-500.0,0.00032876,5]
[341035436,1730295043151,-500.0,0.00032876,5]
[341035437,1730295043161,-500.0,0.00032876,5]
[341035438,1730295043170,-1011.39,0.00032876,5]
[341035439,1730295043179,-500.0,0.00032876,5]
[341035440,1730295043188,-1908.74,0.00032876,5]
[341035441,1730295043198,-500.0,0.00032876,5]
[341035442,1730295043207,-500.0,0.00032876,5]
[341035443,1730295043218,-1062.85,0.00032876,5]
[341035444,1730295043228,-533.59,0.00032876,5]
[341035445,1730295043241,-676.82,0.00032876,5]
[341035446,1730295043250,-500.0,0.00032876,5]
[341035447,1730295043260,-1449.04,0.00032876,5]
[341035448,1730295043269,-500.0,0.00032876,5]
[341035449,1730295043279,-208.873974,0.00032876,7]
[341035450,1730295043288,-500.0,0.00032876,5]
[341035451,1730295043298,-500.0,0.00032876,5]
[341035452,1730295043306,-500.0,0.00032876,5]
[341035453,1730295043315,-2000.0,0.00032876,5]
[341035454,1730295043325,-500.0,0.00032876,5]
[341035455,1730295043336,-500.0,0.00032876,5]
[341035457,1730295043346,-821.26,0.00032876,5]
[341035459,1730295043356,-500.0,0.00032876,5]
[341035461,1730295043367,-500.0,0.00032876,5]
[341035463,1730295043377,-628.44020082,0.00032876,5]
[341035465,1730295043387,-500.0,0.00032876,5]
[341035467,1730295043396,-202.948873,0.00032876,7]
[341035469,1730295043405,-644.01,0.00032876,5]
[341035471,1730295043415,-202.948873,0.00032876,7]
[341035473,1730295043425,-500.0,0.00032876,5]
[341035475,1730295043435,-1920.62,0.00032876,5]
[341035477,1730295043445,-500.0,0.00032876,5]
[341035479,1730295043454,-500.0,0.00032876,5]
[341035481,1730295043464,-1455.44,0.00032876,5]
[341035483,1730295043473,-500.0,0.00032876,5]
[341035485,1730295043483,-1092.41,0.00032876,5]
[341035487,1730295043492,-500.0,0.00032876,5]
[341035489,1730295043501,-641.70737576,0.00032876,5]
[341035491,1730295043511,-541.98,0.00032876,5]
[341035493,1730295043520,-957.02,0.00032876,5]
[341035495,1730295043530,-1147.19,0.00032876,5]
[341035497,1730295043539,-901.45,0.00032876,30]
[341035499,1730295043548,-3302.86,0.00032876,5]
[341035501,1730295043558,-500.0,0.00032876,5]
[341035503,1730295043567,-1325.05,0.00032876,5]
[341035505,1730295043577,-505.44933408,0.00032876,5]
[341035507,1730295043587,-500.0,0.00032876,5]
[341035509,1730295043597,-500.0,0.00032876,5]
[341035511,1730295043606,-500.0,0.00032876,5]
[341035513,1730295043618,-1641.16,0.00032876,5]
[341035515,1730295043627,-568.13,0.00032876,5]
[341035517,1730295043636,-500.0,0.00032876,5]
[341035519,1730295043645,-651.63,0.00032876,5]
[341035521,1730295043655,-603.44,0.00032876,5]
[341035523,1730295043663,-500.0,0.00032876,5]
[341035525,1730295043672,-500.0,0.00032876,5]
[341035526,1730295043681,-607.18,0.00032876,5]
[341035528,1730295043691,-500.0,0.00032876,5]
[341035530,1730295043700,-520.4,0.00032876,5]
[341035532,1730295043710,-545.25160881,0.00032876,5]
[341035534,1730295043719,-542.47,0.00032876,5]
[341035537,1730295043729,-3841.76,0.00032876,5]
[341035539,1730295043739,-500.0,0.00032876,5]
[341035541,1730295043748,-500.0,0.00032876,5]
[341035542,1730295043757,-500.0,0.00032876,5]
[341035544,1730295043767,-1150.39,0.00032876,5]
[341035546,1730295043776,-500.0,0.00032876,5]
[341035548,1730295043785,-820.05,0.00032876,5]
[341035550,1730295043795,-731.89,0.00032876,5]
[341035552,1730295043804,-5584.52,0.00032876,5]
[341035554,1730295043814,-954.6,0.00032876,5]
[341035556,1730295043823,-500.0,0.00032876,5]
[341035558,1730295043832,-500.0,0.00032876,5]
[341035560,1730295043842,-828.85,0.00032876,5]
[341035562,1730295043851,-500.0,0.00032876,5]
[341035564,1730295043863,-500.0,0.00032876,5]
[341035566,1730295043874,-590.33,0.00032876,5]
[341035568,1730295043883,-592.86,0.00032876,5]
[341035570,1730295043893,-500.0,0.00032876,5]
[341035572,1730295043903,-598.68,0.00032876,5]
[341035574,1730295043912,-500.0,0.00032876,5]
[341035576,1730295043922,-1033.49,0.00032876,5]
[341035578,1730295043932,-3675.8,0.00032876,5]
[341035580,1730295043942,-1029.05,0.00032876,5]
[341035582,1730295043952,-500.0,0.00032876,5]
[341035583,1730295043963,-893.12,0.00032876,5]
[341035585,1730295043972,-1548.85,0.00032876,5]
[341035586,1730295043982,-200.0,0.000329,12]
[341035587,1730295043992,-500.0,0.0003295,2]
[341035588,1730295044001,-151.65,0.00033044,2]
[341035589,1730295044011,-500.0,0.00033049,5]
[341035590,1730295044021,-500.0,0.00033049,5]
[341035591,1730295044032,-500.0,0.00033049,5]
[341035592,1730295044043,-608.94,0.00033049,5]
[341035593,1730295044053,-500.0,0.00033049,5]
[341035594,1730295044064,-500.0,0.00033049,5]
[341035595,1730295044074,-500.0,0.00033049,5]
[341035596,1730295044084,-500.0,0.00033049,5]
[341035597,1730295044094,-500.0,0.00033049,5]
[341035598,1730295044104,-585.55,0.00033049,5]
[341035599,1730295044116,-500.0,0.00033049,5]
[341035600,1730295044126,-500.0,0.00033049,5]
[341035601,1730295044135,-500.0,0.00033049,5]
[341035602,1730295044145,-500.0,0.00033049,5]
[341035603,1730295044155,-500.0,0.00033049,5]
[341035604,1730295044165,-521.21,0.00033049,5]
[341035605,1730295044175,-500.0,0.00033049,5]
[341035606,1730295044185,-500.0,0.00033049,5]
[341035607,1730295044195,-500.0,0.00033049,5]
[341035608,1730295044205,-699.81,0.00033049,5]
[341035609,1730295044215,-527.26667726,0.00033049,5]
[341035610,1730295044225,-816.35,0.00033049,5]
[341035611,1730295044243,-500.0,0.00033049,5]
[341035612,1730295044260,-1331.58,0.00033049,5]
[341035613,1730295044447,-500.0,0.00033049,5]
[341035614,1730295044457,-591.96,0.00033049,5]
[341035615,1730295044467,-500.0,0.00033049,5]
[341035616,1730295044476,-449.36864404,0.00033049,5]
[341035619,1730295045902,-637.03,0.00032876,5]
[341035620,1730295045913,-255.84135596,0.00033049,5]
[341035621,1730295045924,-500.0,0.00033049,5]
[341035622,1730295045935,-741.23,0.00033049,5]
[341035623,1730295045945,-500.0,0.00033049,5]
[341035624,1730295045955,-500.0,0.00033049,5]
[341035625,1730295045965,-500.0,0.00033049,5]
[341035626,1730295045975,-500.0,0.00033049,5]
[341035627,1730295045985,-906.47,0.00033049,5]
[341035628,1730295045995,-500.0,0.00033049,5]
[341035629,1730295046005,-243.21170976,0.00033049,5]
[341035630,1730295046017,-256.78829024,0.00033049,5]
[341035631,1730295046027,-500.0,0.00033049,5]
[341035632,1730295046037,-524.6,0.00033049,5]